bitfinex/quotes_BTCUSD_20241014
["timestamp","ask_amount","ask_price","bid_price","bid_amount"]
[1728898748044,0.00062804,64749.0,64748.0,1.18056599]
[1728898748739,0.00062804,64749.0,64748.0,1.17856599]
[1728898749432,0.00062804,64749.0,64748.0,1.35296332]
[1728898750653,0.00062804,64749.0,64748.0,1.18056599]
[1728898750893,0.00062804,64749.0,64748.0,1.40272493]
[1728898751597,0.00062804,64749.0,64748.0,1.35496332]
[1728898751836,0.00062804,64749.0,64748.0,1.40272072]
[1728898752815,0.00062804,64749.0,64748.0,1.5580791]
[1728898753053,0.00062804,64749.0,64748.0,1.09946599]
[1728898754259,0.00062804,64749.0,64748.0,1.27386332]
[1728898755416,0.00062804,64749.0,64748.0,1.27586332]
[1728898755889,0.00062804,64749.0,64748.0,1.16171894]
[1728898756113,0.00062804,64749.0,64748.0,1.15971894]
[1728898756340,0.00062804,64749.0,64748.0,0.92506866]
[1728898756561,0.00062804,64749.0,64748.0,1.15971894]
[1728898758202,0.00062804,64749.0,64748.0,1.16171894]
[1728898759358,0.00062804,64749.0,64748.0,1.15971894]
[1728898760376,0.00062804,64749.0,64748.0,1.15948094]
[1728898761887,4e-05,64758.0,64757.0,0.161383]
[1728898762092,4e-05,64758.0,64757.0,0.98058366]
[1728898762294,4e-05,64758.0,64757.0,0.98059129]
[1728898762634,4e-05,64758.0,64757.0,1.21524157]
[1728898763039,4e-05,64758.0,64757.0,1.23415172]
[1728898763263,0.23205625,64782.0,64778.0,0.00496]
[1728898763464,0.23205625,64782.0,64778.0,1.13004157]
[1728898763868,0.23205625,64789.0,64778.0,1.06451393]
[1728898764084,0.23205625,64789.0,64778.0,1.13073453]
[1728898764292,0.23205625,64788.0,64778.0,1.08495487]
[1728898764501,0.23205625,64788.0,64778.0,1.08987033]
[1728898764705,0.23448225,64800.0,64782.0,0.00496]
[1728898765003,0.23448225,64800.0,64786.0,0.60251928]
[1728898765004,0.23205625,64793.0,64786.0,0.60251928]
[1728898765237,0.23205625,64793.0,64786.0,0.90817092]
[1728898765467,0.23205625,64793.0,64786.0,0.89669664]
[1728898765703,0.23448225,64800.0,64786.0,1.07077928]
[1728898765949,0.23448225,64800.0,64786.0,0.89669664]
[1728898766433,0.23448225,64800.0,64786.0,1.05792065]
[1728898766666,0.23448225,64800.0,64786.0,1.07192065]
[1728898767117,0.23448225,64800.0,64786.0,1.08592065]
[1728898767608,0.38880325,64800.0,64786.0,1.08096065]
[1728898767887,0.0826,64791.0,64786.0,1.08592065]
[1728898768129,0.000823,64792.0,64786.0,1.06696065]
[1728898768333,0.000823,64792.0,64786.0,1.07192065]
[1728898768789,0.000823,64792.0,64786.0,1.08096065]
[1728898769013,0.000823,64792.0,64786.0,1.05296065]
[1728898769265,0.000823,64792.0,64786.0,1.08096065]
[1728898769508,0.01802952,64787.0,64786.0,1.06696065]
[1728898769771,0.01802952,64787.0,64786.0,0.77887801]
[1728898770010,0.21462952,64787.0,64786.0,0.631654]
[1728898770243,0.21462952,64787.0,64786.0,0.4633]
[1728898770474,0.36898052,64787.0,64786.0,0.4633]
[1728898771179,0.36898052,64787.0,64786.0,0.4773]
[1728898772158,0.36898052,64787.0,64786.0,0.4693]
[1728898772404,0.36898052,64787.0,64786.0,0.4833]
[1728898775847,0.32898052,64787.0,64786.0,0.4833]
[1728898777956,0.17462952,64787.0,64786.0,0.4833]
[1728898778192,0.17462952,64787.0,64786.0,0.81173664]
[1728898778416,0.000823,64792.0,64791.0,0.154342]
[1728898779102,0.061823,64793.0,64786.0,0.64538264]
[1728898779558,0.061823,64793.0,64789.0,0.308691]
[1728898779806,0.061823,64793.0,64786.0,0.65938264]
[1728898779807,0.1043,64795.0,64794.0,0.154335]
[1728898780516,0.1043,64795.0,64791.0,0.18808264]
[1728898780781,0.1043,64795.0,64794.0,0.154335]
[1728898781020,0.1043,64795.0,64791.0,0.18808264]
[1728898781260,0.1043,64795.0,64791.0,0.006]
[1728898781733,0.1043,64795.0,64792.0,0.154338]
[1728898782019,0.338232,64795.0,64794.0,0.003]
[1728898782248,0.338232,64795.0,64794.0,0.017]
[1728898782508,0.154351,64787.0,64786.0,0.4633]
[1728898782734,0.336151,64787.0,64786.0,0.4633]
[1728898785083,0.336151,64787.0,64786.0,0.4853]
[1728898785554,0.56820725,64787.0,64786.0,0.4853]
[1728898785790,0.35057675,64787.0,64786.0,0.4853]
[1728898787200,0.35057675,64787.0,64786.0,0.4773]
[1728898787427,0.35057675,64787.0,64786.0,0.4673]
[1728898787660,0.35057675,64787.0,64786.0,0.4813]
[1728898788851,0.336151,64787.0,64786.0,0.4813]
[1728898789102,0.35058348,64787.0,64786.0,0.4813]
[1728898789332,0.37367933,64787.0,64786.0,0.4813]
[1728898793811,0.37367933,64787.0,64786.0,0.482946]
[1728898794040,0.55790334,64787.0,64786.0,0.482946]
[1728898795250,0.55791057,64787.0,64786.0,0.482946]
[1728898795476,0.37368656,64787.0,64786.0,0.482946]
[1728898795711,0.35058348,64787.0,64786.0,0.482946]
[1728898798551,0.37370913,64787.0,64786.0,0.482946]
[1728898799723,0.35058348,64787.0,64786.0,0.482946]
[1728898802371,0.37371613,64787.0,64786.0,0.482946]
[1728898802605,0.55794014,64787.0,64786.0,0.482946]
[1728898803075,0.56294014,64787.0,64786.0,0.482946]
[1728898803324,0.5629705,64787.0,64786.0,0.482946]
[1728898803564,0.5629705,64787.0,64786.0,0.478946]
[1728898803809,0.5639705,64787.0,64786.0,0.464946]
[1728898804102,0.54083481,64787.0,64786.0,0.464946]
[1728898804346,0.54083481,64787.0,64786.0,0.478946]
[1728898805054,0.64083481,64787.0,64786.0,0.478946]
[1728898809773,0.63583481,64787.0,64786.0,0.478946]
[1728898810036,0.64083481,64787.0,64786.0,0.478946]
[1728898816716,0.64283481,64787.0,64786.0,0.478946]
[1728898818584,0.6428467,64787.0,64786.0,0.478946]
[1728898818822,0.6428467,64787.0,64779.0,0.001646]
[1728898818823,0.159368,64780.0,64779.0,0.001646]
[1728898819044,0.82124634,64780.0,64779.0,0.001646]
[1728898820229,0.82224634,64780.0,64779.0,0.001646]
[1728898820955,0.99632898,64780.0,64778.0,0.025]
[1728898821212,0.32850064,64759.0,64758.0,0.23205625]
[1728898821475,0.34297233,64759.0,64758.0,0.23205625]
[1728898821941,0.154437,64751.0,64750.0,0.23205625]
[1728898822215,0.154442,64749.0,64748.0,0.001644]
[1728898824101,0.233442,64749.0,64748.0,0.001644]
[1728898824356,0.39466601,64749.0,64748.0,0.001644]
[1728898824632,0.40909328,64749.0,64748.0,0.001644]
[1728898825309,0.41009328,64749.0,64748.0,0.013644]
[1728898825533,0.41109328,64749.0,64748.0,0.013644]
[1728898825753,0.41109328,64749.0,64748.0,0.001644]
[1728898826028,0.41708523,64749.0,64748.0,0.001644]
[1728898826257,0.41708523,64749.0,64748.0,0.005644]
[1728898826258,0.85624148,64749.0,64748.0,0.005644]
[1728898826486,0.62418523,64749.0,64748.0,0.005644]
[1728898826724,0.63009484,64749.0,64748.0,0.001644]
[1728898826946,0.63318523,64749.0,64748.0,0.002644]
[1728898827953,0.63218523,64749.0,64748.0,0.002644]
[1728898828183,0.64818523,64749.0,64748.0,0.010644]
[1728898828637,0.65618523,64749.0,64748.0,0.011644]
[1728898829097,0.64818523,64749.0,64748.0,0.010644]
[1728898829329,0.65818523,64749.0,64748.0,0.011644]
[1728898829570,0.65718523,64749.0,64748.0,0.002644]
[1728898829804,0.63376601,64749.0,64748.0,0.006644]
[1728898830255,0.64376601,64749.0,64748.0,0.007644]
[1728898832637,0.80513572,64749.0,64748.0,0.007644]
[1728898832875,0.63376601,64749.0,64748.0,0.006644]
[1728898833114,0.64776601,64749.0,64748.0,0.006644]
[1728898834092,0.64676601,64749.0,64748.0,0.001644]
[1728898834331,0.63276601,64749.0,64748.0,0.001644]
[1728898834547,0.63376601,64749.0,64748.0,0.008644]
[1728898834770,0.64776601,64749.0,64748.0,0.009644]
[1728898841401,0.62276601,64749.0,64748.0,0.009644]
[1728898842114,0.62476601,64749.0,64748.0,0.009644]
[1728898845647,0.62276601,64749.0,64748.0,0.009644]
[1728898845904,0.33066601,64749.0,64748.0,0.009644]
[1728898846858,0.31666601,64749.0,64748.0,0.008644]
[1728898847375,0.32366601,64749.0,64748.0,0.002644]
[1728898847620,0.32466601,64749.0,64748.0,0.016644]
[1728898847859,0.31666601,64749.0,64748.0,0.001644]
[1728898848097,0.32366601,64749.0,64748.0,0.002644]
[1728898848343,0.32466601,64749.0,64748.0,0.016644]
[1728898848597,0.31766601,64749.0,64748.0,0.015644]
[1728898849064,0.31966601,64749.0,64748.0,0.001644]
[1728898849286,0.32066601,64749.0,64748.0,0.015644]
[1728898849969,0.33511423,64749.0,64748.0,0.015644]
[1728898850209,0.31666601,64749.0,64748.0,0.015644]
[1728898850445,0.31866601,64749.0,64748.0,0.015644]
[1728898852307,0.40853125,64749.0,64748.0,0.015644]
[1728898852768,0.40853475,64749.0,64748.0,0.015644]
[1728898853015,0.39406601,64749.0,64748.0,0.015644]
[1728898853535,0.50496601,64749.0,64748.0,0.015644]
[1728898853751,0.60496601,64749.0,64748.0,0.015644]
[1728898854456,0.60296601,64749.0,64748.0,0.015644]
[1728898854685,0.60196601,64749.0,64748.0,0.001644]
[1728898854924,0.60796601,64749.0,64748.0,0.016644]
[1728898855401,0.60196601,64749.0,64748.0,0.015644]
[1728898855642,0.60796601,64749.0,64748.0,0.016644]
[1728898855867,0.60796601,64749.0,64748.0,0.002644]
[1728898856575,0.60296601,64749.0,64748.0,0.002644]
[1728898856833,0.42166601,64749.0,64748.0,0.002644]
[1728898857085,0.42166601,64749.0,64748.0,0.016644]
[1728898857308,0.41566601,64749.0,64748.0,0.001644]
[1728898857772,0.42266601,64749.0,64748.0,0.016644]
[1728898858022,0.65472226,64749.0,64748.0,0.002644]
[1728898858252,0.41566601,64749.0,64748.0,0.015644]
[1728898858466,0.42166601,64749.0,64748.0,0.016644]
[1728898859854,0.41566601,64749.0,64748.0,0.015644]
[1728898860084,0.41566601,64749.0,64748.0,0.016644]
[1728898860315,0.42166601,64749.0,64748.0,0.002644]
[1728898860535,0.42166601,64749.0,64748.0,0.016644]
[1728898860755,0.41566601,64749.0,64748.0,0.001644]
[1728898860981,0.42166601,64749.0,64748.0,0.002644]
[1728898861230,0.59574865,64749.0,64748.0,0.016644]
[1728898861695,0.92526556,64749.0,64748.0,0.016644]
[1728898861973,0.80504865,64749.0,64748.0,0.016644]
[1728898862191,0.63296601,64749.0,64748.0,0.016644]
[1728898862870,0.62696601,64749.0,64748.0,0.015644]
[1728898863338,0.63296601,64749.0,64748.0,0.001644]
[1728898863562,0.63296601,64749.0,64748.0,0.015644]
[1728898864313,0.6127407,64749.0,64748.0,0.015644]
[1728898864793,0.84479695,64749.0,64748.0,0.015644]
[1728898865029,0.60796601,64749.0,64748.0,0.015644]
[1728898869101,0.60296601,64749.0,64748.0,0.015644]
[1728898869547,0.32166601,64749.0,64748.0,0.015644]
[1728898878350,0.32166601,64749.0,64748.0,0.001644]
[1728898879252,0.31566601,64749.0,64748.0,0.001644]
[1728898879486,0.32066601,64749.0,64748.0,0.002644]
[1728898880868,0.32066601,64749.0,64748.0,0.016644]
[1728898881341,0.32066601,64749.0,64748.0,0.002644]
[1728898881566,0.32066601,64749.0,64748.0,0.016644]
[1728898883371,0.43556601,64749.0,64748.0,0.016644]
[1728898883612,0.32066601,64749.0,64748.0,0.016644]
[1728898900212,0.159442,64749.0,64748.0,0.016644]
[1728898900426,0.159442,64749.0,64748.0,0.13410164]
[1728898900427,0.005,64749.0,64748.0,0.13410164]
[1728898900659,0.005,64749.0,64748.0,0.28854564]
[1728898900871,0.15436,64750.0,64748.0,0.27354564]
[1728898901334,0.005,64749.0,64748.0,0.28854564]
[1728898901556,0.005,64749.0,64748.0,0.35124564]
[1728898901769,0.15436,64750.0,64749.0,0.154442]
[1728898902253,0.15536,64750.0,64749.0,0.27189964]
[1728898902481,0.15536,64750.0,64749.0,0.41869964]
[1728898902710,0.15536,64750.0,64749.0,0.43019144]
[1728898903377,0.15536,64750.0,64749.0,0.53615728]
[1728898903595,0.15436,64750.0,64749.0,0.53615728]
[1728898903818,0.15436,64750.0,64749.0,0.5820533]
[1728898904501,0.15436,64750.0,64749.0,0.53615728]
[1728898904731,0.15536,64750.0,64749.0,0.56115728]
[1728898905407,0.15536,64750.0,64749.0,0.54715728]
[1728898905849,0.15536,64750.0,64749.0,0.56115728]
[1728898906496,0.15536,64750.0,64749.0,0.44369964]
[1728898909174,0.13736,64750.0,64749.0,0.44369964]
[1728898911450,0.13736,64750.0,64749.0,0.56115728]
[1728898911700,0.13736,64750.0,64749.0,0.82734129]
[1728898911926,0.13636,64750.0,64749.0,0.81834129]
[1728898912153,0.23205625,64760.0,64755.0,0.0806]
[1728898912405,0.23205625,64760.0,64759.0,0.27187564]
[1728898912616,0.23205625,64760.0,64759.0,0.43309965]
[1728898912825,0.23205625,64768.0,64765.0,0.154403]
[1728898913089,0.23205625,64768.0,64767.0,0.11745764]
[1728898913540,0.154393,64770.0,64767.0,0.11745764]
[1728898913755,0.308779,64772.0,64767.0,0.11745764]
[1728898913986,0.308782,64771.0,64767.0,0.11745764]
[1728898914225,0.154395,64769.0,64767.0,0.11745764]
[1728898914474,0.308782,64771.0,64767.0,0.11745764]
[1728898914698,0.308782,64771.0,64767.0,0.12145764]
[1728898914930,0.154395,64769.0,64767.0,0.12145764]
[1728898915161,0.154395,64769.0,64767.0,0.13145764]
[1728898915390,0.308773,64773.0,64767.0,0.13445764]
[1728898915877,0.154392,64770.0,64767.0,0.13445764]
[1728898916110,0.154392,64770.0,64767.0,0.12045764]
[1728898916342,0.154392,64770.0,64767.0,0.017]
[1728898916343,0.154397,64768.0,64767.0,0.017]
[1728898916576,0.154397,64768.0,64767.0,0.014]
[1728898917035,0.154397,64768.0,64767.0,0.13745764]
[1728898917523,0.154397,64768.0,64767.0,0.11745764]
[1728898917989,0.154397,64768.0,64767.0,0.13845764]
[1728898918255,0.154397,64768.0,64767.0,0.12445764]
[1728898918495,0.154397,64768.0,64767.0,0.13845764]
[1728898921580,0.154397,64768.0,64767.0,0.021]
[1728898925818,0.402587,64770.0,64767.0,0.021]
[1728898926046,0.154395,64769.0,64767.0,0.021]
[1728898926506,0.154397,64768.0,64767.0,0.021]
[1728898926734,0.154397,64768.0,64767.0,0.014]
[1728898927234,0.248193,64770.0,64767.0,0.13645764]
[1728898927474,0.154397,64768.0,64767.0,0.11745764]
[1728898927687,0.154397,64768.0,64767.0,0.13145764]
[1728898927918,0.154397,64768.0,64767.0,0.13845764]
[1728898928145,0.154397,64768.0,64767.0,0.12445764]
[1728898928361,0.154397,64768.0,64767.0,0.13845764]
[1728898928587,0.154397,64768.0,64767.0,0.021]
[1728898930339,0.16885712,64768.0,64767.0,0.021]
[1728898931240,0.154397,64768.0,64767.0,0.021]
[1728898931735,0.52792929,64768.0,64767.0,0.021]
[1728898931988,0.64538693,64768.0,64767.0,0.021]
[1728898932198,0.52992929,64768.0,64767.0,0.021]
[1728898932411,0.65038693,64768.0,64767.0,0.021]
[1728898932628,0.329137,64751.0,64750.0,0.23205625]
[1728898932858,0.34360093,64751.0,64750.0,0.23205625]
[1728898933080,0.15444,64750.0,64749.0,0.001646]
[1728898933301,0.16890393,64750.0,64749.0,0.001646]
[1728898933573,0.154431,64754.0,64749.0,0.156088]
[1728898933799,0.01446564,64753.0,64750.0,0.154439]
[1728898934021,0.01446564,64752.0,64751.0,0.11745764]
[1728898934249,0.308853,64756.0,64751.0,0.11745764]
[1728898934476,0.154431,64754.0,64751.0,0.11745764]
[1728898934700,0.154435,64752.0,64749.0,0.011646]
[1728898935145,0.154435,64752.0,64750.0,0.014]
[1728898935409,0.154435,64752.0,64749.0,0.011646]
[1728898935659,0.15444,64750.0,64749.0,0.011646]
[1728898935893,0.62028336,64750.0,64749.0,0.001646]
[1728898936139,0.50282572,64750.0,64749.0,0.001646]
[1728898936374,0.52596682,64750.0,64749.0,0.001646]
[1728898937497,0.50282572,64750.0,64749.0,0.004646]
[1728898938577,0.50382572,64750.0,64749.0,0.004646]
[1728898939057,0.50380774,64750.0,64749.0,0.001646]
[1728898939725,0.50380774,64750.0,64749.0,0.004646]
[1728898942833,0.50378994,64750.0,64749.0,0.004646]
[1728898944842,0.50878994,64750.0,64749.0,0.004646]
[1728898950431,0.50877924,64750.0,64749.0,0.004646]
[1728898951585,0.50377924,64750.0,64749.0,0.004646]
[1728898951832,0.32814,64750.0,64749.0,0.004646]
[1728898952043,0.24684,64750.0,64749.0,0.004646]
[1728898952281,0.001,64750.0,64749.0,0.004646]
[1728898952945,0.15544,64750.0,64749.0,0.004646]
[1728898953163,0.001,64750.0,64749.0,0.159088]
[1728898953378,0.001,64750.0,64749.0,0.004646]
[1728898954092,0.001,64750.0,64749.0,0.33348441]
[1728898954567,0.001823,64750.0,64749.0,0.33348441]
[1728898954784,0.000823,64750.0,64749.0,0.33348441]
[1728898955228,0.000823,64750.0,64749.0,0.34448441]
[1728898955443,0.000823,64750.0,64749.0,0.34748441]
[1728898955916,0.000823,64750.0,64749.0,0.34448441]
[1728898956343,0.000823,64750.0,64749.0,0.35148441]
[1728898956344,0.001823,64750.0,64749.0,0.35148441]
[1728898958450,0.000823,64750.0,64749.0,0.34448441]
[1728898958672,0.001823,64750.0,64749.0,0.35148441]
[1728898958898,0.001823,64750.0,64749.0,0.33748441]
[1728898959115,0.000823,64750.0,64749.0,0.33048441]
[1728898959387,0.000823,64750.0,64749.0,0.34448441]
[1728898959627,0.001823,64750.0,64749.0,0.35348441]
[1728898963281,0.001823,64750.0,64749.0,0.61470842]
[1728898963525,0.001823,64750.0,64749.0,0.92810483]
[1728898963742,0.001823,64750.0,64749.0,0.93506483]
[1728898963989,0.001823,64750.0,64749.0,0.93306483]
[1728898964263,0.001823,64750.0,64749.0,0.75866842]
[1728898964478,0.001823,64750.0,64749.0,0.74466842]
[1728898964670,0.000823,64750.0,64749.0,0.73566842]
[1728898964919,0.000823,64750.0,64749.0,0.91006483]
[1728898965146,0.000823,64750.0,64749.0,0.92206483]
[1728898965603,0.000823,64750.0,64749.0,0.91006483]
[1728898965812,0.000823,64750.0,64749.0,0.92406483]
[1728898966046,0.000823,64750.0,64749.0,0.91206483]
[1728898966264,0.000823,64750.0,64749.0,0.99477469]
[1728898966476,0.000823,64768.0,64762.0,0.32880741]
[1728898966714,0.000823,64768.0,64753.0,0.0821]
[1728898966953,0.000823,64768.0,64756.0,0.27439641]
[1728898966954,0.308823,64762.0,64756.0,0.27439641]
[1728898967168,0.154415,64761.0,64756.0,0.42882041]
[1728898967385,0.405411,64765.0,64756.0,0.42882041]
[1728898967386,0.38646725,64763.0,64757.0,0.154422]
[1728898967597,0.154413,64762.0,64757.0,0.154423]
[1728898967814,0.38646625,64763.0,64757.0,0.154423]
[1728898968277,0.23205625,64763.0,64762.0,0.014]
[1728898968497,0.251005,64765.0,64759.0,0.154418]
[1728898968716,0.0966,64765.0,64758.0,0.15442]
[1728898968955,0.154407,64764.0,64758.0,0.15442]
[1728898969206,0.154409,64763.0,64756.0,0.42882041]
[1728898969390,0.154409,64763.0,64762.0,0.014]
[1728898969859,0.154409,64763.0,64757.0,0.006]
[1728898970082,0.251006,64765.0,64756.0,0.42882041]
[1728898970294,0.154407,64764.0,64757.0,0.154422]
[1728898970529,0.0966,64765.0,64756.0,0.27439641]
[1728898970742,0.251005,64765.0,64758.0,0.15442]
[1728898970959,0.0966,64765.0,64759.0,0.154417]
[1728898971189,0.0966,64765.0,64760.0,0.17439641]
[1728898971398,0.0966,64765.0,64760.0,0.32881041]
[1728898971601,0.0966,64765.0,64760.0,0.17439641]
[1728898972071,0.000823,64768.0,64757.0,0.308846]
[1728898972072,0.000823,64768.0,64764.0,0.17439641]
[1728898972297,0.000823,64768.0,64765.0,0.154403]
[1728898972592,0.000823,64768.0,64764.0,0.48320741]
[1728898972796,0.000823,64768.0,64764.0,0.17439641]
[1728898973235,0.000823,64768.0,64764.0,0.17639641]
[1728898974527,0.000823,64768.0,64765.0,0.154403]
[1728898974684,0.000823,64768.0,64764.0,0.17639641]
[1728898974899,0.15522,64768.0,64764.0,0.19039641]
[1728898975301,0.000823,64768.0,64764.0,0.014]
[1728898975497,0.15522,64768.0,64764.0,0.017]
[1728898975759,0.154404,64765.0,64764.0,0.017]
[1728898976664,0.154404,64765.0,64764.0,0.014]
[1728898977113,0.154404,64765.0,64764.0,0.02]
[1728898978236,0.154404,64765.0,64764.0,0.006]
[1728898978658,0.154404,64765.0,64764.0,0.02]
[1728898981689,0.1745,64767.0,64764.0,0.02]
[1728898981902,0.154402,64766.0,64764.0,0.02]
[1728898982320,0.1745,64767.0,64764.0,0.02]
[1728898982528,0.1745,64767.0,64764.0,0.014]
[1728898982743,0.3289,64767.0,64762.0,0.15441]
[1728898982965,0.3289,64767.0,64764.0,0.004]
[1728898983174,0.0972,64767.0,64764.0,0.018]
[1728898983400,0.0972,64767.0,64764.0,0.19239641]
[1728898983628,0.000823,64768.0,64764.0,0.19239641]
[1728898983629,0.000823,64768.0,64767.0,0.154399]
[1728898985837,0.000823,64768.0,64764.0,0.17439641]
[1728898986045,0.000823,64768.0,64767.0,0.171399]
[1728898986684,0.000823,64768.0,64767.0,0.157399]
[1728898987797,0.000823,64768.0,64767.0,0.154399]
[1728898988685,0.000823,64768.0,64767.0,0.014]
[1728898988924,0.155221,64768.0,64767.0,0.017]
[1728898990827,0.34488916,64768.0,64767.0,0.017]
[1728898991491,0.3680454,64768.0,64767.0,0.017]
[1728898994824,0.330421,64768.0,64767.0,0.017]
[1728898995059,0.36806474,64768.0,64767.0,0.017]
[1728898996264,0.68051978,64768.0,64767.0,0.017]
[1728898997706,0.50612337,64768.0,64767.0,0.017]
[1728899006440,0.49164501,64768.0,64767.0,0.017]
[1728899006667,0.50611235,64768.0,64767.0,0.017]
[1728899010651,0.50610952,64768.0,64767.0,0.017]
[1728899013091,0.34488551,64768.0,64767.0,0.017]
[1728899013585,0.01528751,64768.0,64767.0,0.19139641]
[1728899013835,0.01528751,64768.0,64767.0,0.2887122]
[1728899013836,0.000823,64768.0,64767.0,0.2887122]
[1728899014073,0.000823,64768.0,64767.0,0.3887122]
[1728899014289,0.000823,64768.0,64767.0,0.61883165]
[1728899014737,0.000823,64768.0,64767.0,0.54693621]
[1728899015015,0.000823,64768.0,64767.0,0.53293621]
[1728899015237,0.000823,64768.0,64767.0,0.54693621]
[1728899015475,0.000823,64768.0,64767.0,0.61571771]
[1728899015699,0.000823,64768.0,64767.0,0.55189621]
[1728899015943,0.000823,64768.0,64767.0,0.8745515]
[1728899016175,0.000823,64768.0,64767.0,1.23204831]
[1728899016407,0.000823,64768.0,64767.0,1.23304831]
[1728899016625,0.000823,64768.0,64767.0,1.24504831]
[1728899017071,0.000823,64768.0,64767.0,1.15058293]
[1728899017295,0.000823,64768.0,64767.0,1.17358629]
[1728899017509,0.000823,64768.0,64767.0,1.06191566]
[1728899017920,0.000823,64768.0,64767.0,1.06091566]
[1728899018391,0.000823,64768.0,64767.0,1.15052807]
[1728899018625,0.000823,64768.0,64767.0,1.40244831]
[1728899019088,0.000823,64768.0,64767.0,1.40144831]
[1728899019300,0.000823,64768.0,64767.0,1.40244831]
[1728899019735,0.000823,64768.0,64767.0,1.40044831]
[1728899019967,0.000823,64768.0,64767.0,1.40144831]
[1728899020465,0.000823,64768.0,64767.0,1.40244831]
[1728899020893,0.000823,64768.0,64767.0,1.40044831]
[1728899021324,0.000823,64768.0,64767.0,1.40144831]
[1728899021548,0.000823,64768.0,64767.0,1.40044831]
[1728899021786,0.000823,64778.0,64777.0,0.159335]
[1728899022000,0.000823,64778.0,64777.0,0.789235]
[1728899022219,0.000823,64778.0,64777.0,0.74349166]
[1728899022421,0.000823,64778.0,64777.0,0.78921512]
[1728899022632,0.000823,64778.0,64777.0,0.76649166]
[1728899023105,0.23448225,64800.0,64792.0,0.15434]
[1728899023331,0.23448225,64800.0,64792.0,1.19787666]
[1728899023332,0.000823,64793.0,64792.0,1.19787666]
[1728899023558,0.000823,64793.0,64792.0,1.24358496]
[1728899023789,0.000823,64793.0,64792.0,1.19987666]
[1728899024025,0.000823,64793.0,64792.0,1.22287666]
[1728899024247,0.002426,64800.0,64799.0,0.259283]
[1728899024466,0.002426,64800.0,64799.0,1.08260966]
[1728899025368,4.8e-05,64806.0,64805.0,0.282269]
[1728899025607,4.8e-05,64806.0,64805.0,1.08055566]
[1728899025810,4.8e-05,64806.0,64805.0,1.08255566]
[1728899026032,4.8e-05,64806.0,64805.0,1.08055566]
[1728899026468,4.8e-05,64806.0,64805.0,1.05755566]
[1728899027474,4.8e-05,64806.0,64805.0,0.717239]
[1728899027717,4.8e-05,64806.0,64805.0,0.46393]
[1728899027718,0.009048,64806.0,64805.0,0.46393]
[1728899027926,0.009048,64806.0,64805.0,0.618239]
[1728899028159,0.009048,64806.0,64805.0,0.46393]
[1728899028384,0.009048,64806.0,64805.0,0.46493]
[1728899028385,0.019048,64806.0,64805.0,0.46493]
[1728899028610,0.163354,64806.0,64805.0,0.46393]
[1728899028828,0.009048,64806.0,64805.0,0.95855566]
[1728899029057,0.001048,64806.0,64805.0,0.97155566]
[1728899029307,0.008048,64806.0,64805.0,0.95855566]
[1728899029518,0.009048,64806.0,64805.0,0.97255566]
[1728899029986,4.8e-05,64806.0,64805.0,1.05755566]
[1728899030214,0.008048,64806.0,64805.0,1.05855566]
[1728899031095,0.008048,64806.0,64805.0,1.05359566]
[1728899031313,0.018048,64806.0,64805.0,1.05459566]
[1728899032629,0.018048,64806.0,64805.0,0.89337165]
[1728899032866,0.018048,64806.0,64805.0,0.79337165]
[1728899033517,0.010048,64806.0,64805.0,0.618239]
[1728899033757,0.010048,64806.0,64805.0,0.46143706]
[1728899033971,0.011048,64806.0,64805.0,0.47543706]
[1728899034486,0.001048,64806.0,64805.0,0.80287871]
[1728899034704,0.002048,64806.0,64805.0,0.80787871]
[1728899034923,0.001048,64806.0,64805.0,0.80287871]
[1728899035368,0.002048,64806.0,64805.0,0.80787871]
[1728899035576,4.8e-05,64806.0,64805.0,0.78887871]
[1728899035806,4.8e-05,64806.0,64805.0,0.79387871]
[1728899036026,0.002048,64806.0,64805.0,0.79987871]
[1728899036238,0.002048,64806.0,64805.0,0.79487871]
[1728899036461,0.001048,64806.0,64805.0,0.78887871]
[1728899036682,0.002871,64806.0,64805.0,0.78887871]
[1728899037579,0.003871,64806.0,64805.0,0.79387871]
[1728899038680,0.003871,64806.0,64805.0,0.46543706]
[1728899038908,0.003871,64806.0,64805.0,0.63956971]
[1728899039344,0.003871,64806.0,64805.0,0.79387871]
[1728899039556,0.002871,64806.0,64805.0,0.63956971]
[1728899039765,0.002871,64806.0,64805.0,0.79387871]
[1728899039984,0.002871,64806.0,64805.0,0.79787871]
[1728899040644,0.000871,64806.0,64805.0,0.63856971]
[1728899040879,0.000871,64806.0,64805.0,0.46943706]
[1728899041096,0.001871,64806.0,64805.0,0.64356971]
[1728899041310,0.000871,64806.0,64805.0,0.78887871]
[1728899041734,0.000871,64806.0,64805.0,0.79987871]
[1728899041735,0.002871,64806.0,64805.0,0.79987871]
[1728899041962,0.002871,64806.0,64805.0,1.24019537]
[1728899042250,0.002871,64806.0,64805.0,1.23419537]
[1728899042251,0.001871,64806.0,64805.0,1.23419537]
[1728899042466,0.00018677,64807.0,64806.0,0.159266]
[1728899042677,0.00018677,64807.0,64806.0,0.88590001]
[1728899043113,0.000823,64810.0,64809.0,0.159259]
[1728899043320,0.000823,64810.0,64809.0,1.23413831]
[1728899044824,0.001823,64810.0,64809.0,1.24813831]
[1728899045260,0.001823,64810.0,64809.0,1.06904566]
[1728899046181,0.001823,64810.0,64809.0,1.24317831]
[1728899046828,0.001823,64810.0,64809.0,1.24813831]
[1728899047480,0.002823,64810.0,64809.0,1.26113831]
[1728899049227,0.23287925,64817.0,64809.0,1.26113831]
[1728899049228,0.23287925,64817.0,64813.0,0.15429]
[1728899049453,0.23287925,64817.0,64813.0,0.95500666]
[1728899049926,0.000823,64817.0,64813.0,0.95500666]
[1728899050549,0.1785,64826.0,64816.0,0.308564]
[1728899050763,0.1785,64826.0,64820.0,0.17413265]
[1728899050764,0.0144258,64822.0,64820.0,0.17413265]
[1728899050977,0.1785,64826.0,64820.0,0.17413265]
[1728899050978,0.0144258,64821.0,64820.0,0.17413265]
[1728899051407,0.0144258,64821.0,64820.0,0.32840565]
[1728899051625,0.0144258,64821.0,64820.0,0.17413265]
[1728899052279,0.0144258,64821.0,64820.0,0.32840565]
[1728899052495,0.0154258,64821.0,64820.0,0.18213265]